Cogmind - Beta 14 @@@ ROGUE MODE // 2025.04.28 @ 14:32:37 Player: Florist Result: Destroyed by G-34 Mercenary with Small Laser Performance ------------- Evolutions (0) 0 Regions Visited (1) 200 Robots Destroyed (16) 80 Value Destroyed (399) 399 Prototype IDs (0) 0 Alien Tech Used (0) 0 Bonus (0) 0 TOTAL SCORE: 679 Bonus ------- None Cogmind --------- Core Integrity 0/250 Matter 275/300 Energy 37/100 System Corruption 1% Temperature Warm (119) Movement Hovering (56) Location -10/Materials Parts ------- > --- POWER (1) -------- (None) > --- PROPULSION (2) --- Hover Unit Hover Unit > --- UTILITY (2) ------ Small Storage Unit Structural Scanner > --- WEAPON (2) ------- Small Laser > --- INVENTORY (8) ---- Hover Unit Hover Unit Heat Sink Sensor Array Signal Interpreter ECM Suite Hacking Suite Small Laser Peak State ------------ > --- POWER ------------ Ion Engine > --- PROPULSION ------- Light Treads Light Treads > --- UTILITY ---------- Small Storage Unit > --- WEAPON ----------- Particle Gun Light Assault Rifle > --- INVENTORY -------- Aluminum Leg Aluminum Leg Flight Unit Heat Sink Structural Scanner ECM Suite Hacking Suite EM Pulse Gun [Rating: 8] Favorites ----------- Power Ion Engine Engine Ion Engine Propulsion Light Treads Treads Light Treads Hover Unit Hover Unit Flight Unit Flight Unit Utility Small Storage Unit Device Structural Scanner Storage Small Storage Unit Weapon Light Assault Rifle Energy Gun Particle Gun Ballistic Gun Light Assault Rifle Build | -11 -10 ------- Run | Yrd Mat Slots Evolved . | . . Power . | . . Propulsion . | . . Utility . | . . Weapon . | . . Parts Attached 14 | 5 9 Power 1 | . 1 Engine 1 | . 1 Core . | . . Reactor . | . . Propulsion 5 | 2 3 Treads 2 | 2 . Leg . | . . Wheel . | . . Hover 2 | . 2 Flight 1 | . 1 Utility 2 | 1 1 Device 1 | . 1 Storage 1 | 1 . Processor . | . . Hackware . | . . Protection . | . . Artifact . | . . Weapon 6 | 2 4 Energy Gun 4 | . 4 Energy Cannon . | . . Ballistic Gun 2 | 2 . Ballistic Cannon . | . . Launcher . | . . Special Weapon . | . . Impact Weapon . | . . Slashing Weapon . | . . Piercing Weapon . | . . Special Melee Weapon . | . . Unidentified Prototypes . | . . Corrupted Parts 1 | . 1 System Corruption 1 | . 1 Parts Lost 6 | . 6 Power 1 | . 1 Propulsion 1 | . 1 Utility . | . . Weapon 4 | . 4 Highest Loss Streak 5 | . 5 To Critical Strikes . | . . Average Slot Usage (%) 66 | . 66 Engine 3 | . 3 Treads 17 | . 17 Flight 1 | . 1 Storage 14 | . 14 Energy Gun 12 | . 12 Ballistic Gun 14 | . 14 Peak Build Rating 8 | 5 8 Average Rating 5 | 3 5 On Entrance 2 | . 5 Naked Turns . | . . Heaviest Build 14 | 7 14 Greatest Support 40 | 40 40 Greatest Overweight (x) 3 | . 3 Average Overweight (x) . | . . Largest Inventory Capacity 8 | 8 8 Average Capacity 7 | 6 8 Most Carried 8 | 5 8 Average Carried 5 | 3 6 Final Capacity 8 | 8 8 Final Carried 8 | 4 8 Class Distribution -------------------- 100% | Mutant Dominant Class ---------------- Mutant | -10/Materials Resources | -11 -10 ----------- Run | Yrd Mat Matter Collected 357 | 180 177 Remotely . | . . Salvage Created 608 | . 608 Parts 33 | . 33 Haulers Intercepted 1 | . 1 Recyclers Shooed . | . . Parts Field Recycled . | . . Retrieved Matter . | . . Parts Self-Destructed . | . . Prevented . | . . Kills | -11 -10 ------- Run | Yrd Mat Combat Hostiles Destroyed 10 | . 10 Guns 10 | . 10 Classes Destroyed 7 | . 7 Worker 1 | . 1 Hauler 1 | . 1 Recycler 1 | . 1 Operator 2 | . 2 Watcher 1 | . 1 Swarmer 1 | . 1 Grunt 9 | . 9 Best Kill Streak 3 | . 3 Combat Bots Only 2 | . 2 Max Kills in Single Turn 2 | . 2 Gunslinging . | . . Exploded . | . . Melee . | . . Uniques/NPCs Destroyed . | . . Combat | -11 -10 -------- Run | Yrd Mat Hostile Shots Fired 87 | . 87 Missed 19 | . 19 Damage Taken 829 | . 829 Core 256 | . 256 Absorbed by Shields . | . . Core Remaining (%) 100 | 100 . Volleys Fired 56 | . 56 Largest 2 | . 2 Hottest 105 | . 105 Shots Fired 105 | . 105 Gun 105 | . 105 Cannon . | . . Launcher . | . . Special . | . . Kinetic 66 | . 66 Thermal 34 | . 34 Explosive . | . . Electromagnetic 5 | . 5 Robot Hit Streak 11 | . 11 Robot Miss Streak 4 | . 4 Penetration Max . | . . Secondary Targets 1 | . 1 Max Gunslinging Chain 1 | . 1 Shots Hit Robots 67 | . 67 Core Hits 32 | . 32 Critical Kills . | . . Critical Parts Destroyed . | . . Critical Strikes 1 | . 1 Burn 1 | . 1 Melee Attacks . | . . Impact . | . . Slashing . | . . Piercing . | . . Sneak Attacks . | . . Combat Hostiles . | . . Follow-up Attacks . | . . Damage Inflicted 731 | . 731 Guns 731 | . 731 Cannons . | . . Explosions . | . . Melee . | . . Ramming . | . . Kinetic 350 | . 350 Thermal 331 | . 331 Explosive . | . . Electromagnetic 50 | . 50 Impact . | . . Slashing . | . . Piercing . | . . Highest Corruption 1 | . 1 Average Corruption 1 | . 1 Corruption Purged . | . . Corruption Blocked . | . . Effects 1 | . 1 Message Errors 1 | . 1 Overload Shots . | . . Overflow Damage . | . . Projectiles . | . . Explosions . | . . Melee . | . . Knockbacks . | . . Impact . | . . Kinetic . | . . Secondary . | . . Self-Inflicted Damage . | . . Shots . | . . Rammed . | . . Targets Rammed . | . . Kicked . | . . Crushed . | . . Highest Temperature 224 | . 224 Average Temperature 73 | . 73 Received Heat Transfer 441 | . 441 Effects 1 | . 1 Interference 1 | . 1 Siege Activations . | . . Robots Corrupted . | . . Combat Hostiles . | . . Parts Fried . | . . Impact Corruptions . | . . Robots Melted . | . . Combat Hostiles . | . . Parts Melted . | . . Heat Transferred 866 | . 866 Parts Sabotaged . | . . Parts Stolen . | . . Parts Stripped . | . . Power Chain Reactions . | . . Alert | -11 -10 ------- Run | Yrd Mat Peak Influence 207 | . 207 Initial . | . . Average 51 | . 57 Maximum Alert Level 1 | . 1 Low Security (%) 97 | 100 97 Level 1 2 | . 2 Level 2 . | . . Level 3 . | . . Level 4 . | . . Level 5 . | . . High Security . | . . Max Security . | . . Squads Dispatched 4 | . 4 Investigation 2 | . 2 Extermination . | . . Reinforcement 2 | . 2 Assault . | . . Garrison . | . . Intercept . | . . Searches Triggered . | . . Construction Impeded . | . . Haulers Reinforced . | . . Active Scanning Responses . | . . Cargo Convoy Interrupts . | . . Stealth | -11 -10 --------- Run | Yrd Mat Distress Signals 1 | . 1 Communications Jammed . | . . Distress Signals . | . . Times Spotted 26 | . 26 Peak Tracking Total 4 | . 4 Tactical Retreats 2 | . 2 Traps | -11 -10 ------- Run | Yrd Mat Traps Triggered 3 | . 3 Indirectly . | . . Trap Hack Attempts . | . . Triggered . | . . Disarmed . | . . Reprogrammed . | . . Reused . | . . Traps Extracted . | . . Installed . | . . Triggered . | . . Machines | -11 -10 ---------- Run | Yrd Mat Machines Disabled . | . . Max in Single Turn . | . . Machines Repaired . | . . Machines Dismantled . | . . Machines Sabotaged . | . . Overloaded Fab Kills . | . . Hacking | -11 -10 --------- Run | Yrd Mat Machines Accessed 2 | . 2 Terminals 1 | . 1 Fabricators . | . . Repair Stations . | . . Recycling Units 1 | . 1 Scanalyzers . | . . Garrison Access . | . . Total Hacks 4 | . 4 Successful 2 | . 2 Failed 2 | . 2 Catastrophic . | . . Database Lockouts . | . . Manual 2 | . 2 Terminals 2 | . 2 Fabricators . | . . Repair Stations . | . . Recycling Units 2 | . 2 Scanalyzers . | . . Garrison Access . | . . Terminal Hacks . | . . Fabricator Hacks . | . . Repair Station Hacks . | . . Recycling Unit Hacks 1 | . 1 Retrieve Components 1 | . 1 Scanalyzer . | . . Garrison Access Hacks . | . . Unauthorized Hacks 1 | . 1 Terminals 1 | . 1 Botnet 1 | . 1 Fabricators . | . . Repair Stations . | . . Recycling Units . | . . Scanalyzers . | . . Garrison Access . | . . Data Cores Recovered . | . . Used . | . . Hacking Detections 2 | . 2 Full Trace Events . | . . Feedback Events . | . . Feedback Blocked . | . . Robot Schematics Acquired . | . . Robots Built . | . . Authchips . | . . Time . | . . Total Robot Build Rating . | . . Part Schematics Acquired . | . . Parts Built . | . . Authchips . | . . Time . | . . Total Part Build Rating . | . . Parts Repaired . | . . Time . | . . Parts Recycled . | . . Recycled Matter . | . . Retrieved Matter . | . . Retrieved Components 7 | . 7 Parts Scanalyzed . | . . Part Schematics Acquired . | . . Parts Damaged . | . . Bothacking | -11 -10 ------------ Run | Yrd Mat Used RIF Installer . | . . Robots Hacked . | . . Non-combat . | . . Combat . | . . Robot Hacks Applied . | . . Relay Couplers Released . | . . Fabnet Peak Effective % . | . . Robots Rewired . | . . Allies Hacked . | . . Hacks Repelled . | . . Allies | -11 -10 -------- Run | Yrd Mat Total Allies . | . . Largest Group . | . . Highest-Rated Group . | . . Highest-Rated Ally . | . . Total Orders . | . . Ally Attacks . | . . Total Damage . | . . Kills . | . . Allies Corrupted . | . . Allies Melted . | . . Intel | -11 -10 ------- Run | Yrd Mat Robot Analysis Total . | . . Derelict Logs Recovered . | . . Drone Launches . | . . Drone Recoveries . | . . Exploration | -11 -10 ------------- Run | Yrd Mat Turns Passed 989 | 112 877 Spaces Moved 464 | 63 401 Core 97 | 12 85 Treads 322 | 51 271 Legs . | . . Wheels . | . . Hover 13 | . 13 Flight 32 | . 32 Fastest Speed 50 | 50 56 Average Speed 160 | 139 163 Slowest Speed 280 | 160 280 Overloaded Moves . | . . Propulsion Burnouts . | . . Robots Hopped . | . . Cave-ins Triggered . | . . Exploration Rate (%) 36 | 4 68 Regions Visited 1 Branch Regions . Pre-discovered Areas . | . . Known Exits Taken . | . . Unknown Exits Taken 1 | 1 . Scrap Searched . | . . Spaces Dug . | . . Terrain Destroyed . | . . Melee . | . . Projectile . | . . AOE . | . . Terrain Rammed . | . . Walls Destroyed . | . . Machines Disabled . | . . Actions | -11 -10 --------- Run | Yrd Mat Total 622 | 88 534 Wait 58 | 12 46 Move 463 | 62 401 Hop . | . . Pick Up 25 | 9 16 Fast Attach . | . . Attach 14 | 5 9 Detach . | . . Swap . | . . Drop 6 | . 6 Fire 56 | . 56 Melee . | . . Ram . | . . Kick . | . . Crush . | . . Escape Stasis . | . . Rewire . | . . Trap . | . . Miscellaneous . | . . Route ------- -11/Scrapyard -10/Materials (discovered 3 exits: [*Mat x2] / [*Min]) History --------- Turn | Location | Event 6 | -11/Scrapyard | Discovered new exit (range 15) 113 | -11/Scrapyard | Entered Materials 304 | -10/Materials | Build established: Mutant 479 | -10/Materials | Discovered new exit (range 11) 777 | -10/Materials | Core integrity fell below 50% 815 | -10/Materials | Lost 5 parts (1p1n3w) 917 | -10/Materials | Discovered new exit (range 16) 950 | -10/Materials | Discovered new exit (range 12) 952 | -10/Materials | Core integrity fell below 20% 990 | -10/Materials | Destroyed by G-34 Mercenary with Small Laser Last Messages --------------- 00811_ Acquired 20 matter. 00812_ K-01 Serf collects debris. 00860_ K-01 Serf destroyed. 00860_ G-34 Mercenary destroyed. 00863_ K-01 Serf collects debris. 00896_ UMUBIMELZ 6E|FNMPGQS5DGEM 00902_ G-34 Mercenary destroyed. 00906_ R-06 Scavenger collects Aluminum Leg. 00907_ Acquired Sml. Laser. 00909_ R-06 Scavenger collects Lgt. Ion Engine. 00917_ EXIT=FOUND 00951_ Triggered Explosive Trap. 00951_ An explosion rips through the floor. 00956_ Acquired Flight Unit. 00961_ Triggered Alarm Trap. 00961_ An alarm sounds. 00961_ ALERT: Alarm triggered, dispatching investigation squad. 00966_ Dropped Flight Unit. 00967_ Acquired Hover Unit. 00988_ Particle Gun destroyed. Map ----- +----------------------------------------------------+ | ???????????# | Y"#?# #????????? | | ???????????# *|""#?# #????????? | | ???????????# = #?# #????????? | | ???????????########?# #????????? | | ????????????????????# #????????? | | ???????############## ##?###???? | | ?????? #? #???? | | ?????? # #???? | | ?????? # #???? | | ???????############## #???? | | ????????????????????# # #????? | | ????????????????????# ####????? | | #####################%* #???????? | | !!=! #???????? | | %%% #???????? | | = #???????? | | %%%######################???????? | | #?################???????????? | | #?# #########???? | | ### < #########???? | | # ##???? | | ### ## #### ##???? | | #?# ## #?## ##???? | | #?#! !## #?## ##???? | | #?##!!!!### #?## g ##???? | | #??######?# #?## =g@ ##???? | | #?######### #######g####???? | | ##???? | | ##???? | | ! ##???? | | ########+####### ##???? | | ?????????????## ##???? | | ?????????????### ! ##???? | | ?????????????### ##???? | | ??????????????## ##???? | | ??????????????## #### ##???? | | ?????????????????## #### #???? | | ?????????????????# ??? #???? | | ?????????????????? ??? #???? | | ????????????????? ?? ##??? | | ????????????????? < ??? ##??? | | ????????????????# #??###??? | | ????????????????#"" ""????????? | | ??????????????????"!!!"?????????? | | ???????????????????"""??????????? | | ????????????????????????????????? | | ????????????????????????????????? | | ????????????????????????????????? | | ????????????????????????????????? | | ????????????????????????????????? | +----------------------------------------------------+ Best States ------------- Heat Dissipation 25 Energy Generation 10 Energy Capacity 250 Matter Stores 300 Matter Capacity 300 Sight Range 16 Terrain Scan Density 10 Evasion (%) 53 Recoil Reduction 2 Item Schematics ----------------- None Robot Schematics ------------------ None Fabricated ------------ Nothing Alien Tech Used ----------------- None Achievements -------------- None Challenges ------------ None Game ------ Seed SalvagingBombRailgun Manual? 0 Play Time 00:09:21 Cumulative 60.0 hours Start 2025.04.28 @ 07:19:02 End 2025.04.28 @ 14:32:37 Sessions 4 Manual Loads 0 Difficulty Rogue Special Mode None Game No. 74 Rogue 74 Adventurer 0 Explorer 0 Win Type - Total 0 Types 0/0/0/0/0/0/0/0/0 Lore% 14 Gallery% 43 Achievement% 37 Wizard Run 0 Options --------- Layout 1 ASCII 0 Keyboard 0 Movement Mouse Keybinds 0 Fullscreen 1 Font 32/SmallcapsGlow Map View 77x35 Zoom Use 0% Tactical HUD 1 Map Filters NONE Filters NONE Steam 1 RUN: 36f4c973-c83b-4495-aaa5-d0182d50c2ed